fUST/lending_fUST_20250810
["ID","MTS","AMOUNT","RATE_DAILY","PERIOD"]
[378257071,1754801449503,-151.0,0.00023998,7]
[378257073,1754801449512,-231.96268195,0.00024,7]
[378257075,1754801449521,-151.0,0.00024,7]
[378257077,1754801449531,-216.64838636,0.00024,7]
[378257079,1754801449540,-160.0,0.00024,7]
[378257081,1754801449549,-461.62346162,0.00024,7]
[378257083,1754801449559,-843.0869304,0.00024,7]
[378257085,1754801449569,-843.0869304,0.00024,7]
[378257087,1754801449578,-769.70275982,0.00024011,2]
[378257089,1754801449588,-460.0,0.00024014,2]
[378257091,1754801449597,-460.0,0.00024014,2]
[378257093,1754801449607,-151.0,0.00024018,7]
[378257095,1754801449623,-151.0,0.000241,7]
[378257097,1754801449634,-151.0,0.000241,9]
[378257099,1754801449643,-1707.0,0.00024115,2]
[378257101,1754801449652,-151.0,0.0002413,7]
[378257103,1754801449662,-308.663711,0.0002413,7]
[378257105,1754801449671,-308.663711,0.0002413,7]
[378257107,1754801449681,-824.785989,0.0002413,7]
[378257109,1754801449690,-824.785989,0.0002413,7]
[378257111,1754801449699,-151.0,0.00024159,7]
[378257113,1754801449708,-2029.13,0.00024188,2]
[378257115,1754801449718,-567.391488,0.00024188,7]
[378257117,1754801449727,-567.391488,0.00024188,7]
[378257119,1754801449736,-151.0,0.000242,5]
[378257121,1754801449747,-160.0,0.00024205,4]
[378257123,1754801449757,-451.0,0.00024232,3]
[378257125,1754801449767,-460.0,0.00024234,2]
[378257127,1754801449775,-460.0,0.00024236,2]
[378257129,1754801449784,-460.0,0.00024237,2]
[378257131,1754801449794,-607.53,0.00024237,2]
[378257133,1754801449803,-624.93,0.00024237,2]
[378257135,1754801449813,-822.26,0.00024237,2]
[378257137,1754801449823,-460.0,0.00024237,2]
[378257139,1754801449832,-1351.58,0.00024237,2]
[378257141,1754801449841,-460.0,0.00024237,2]
[378257143,1754801449851,-761.44,0.00024237,2]
[378257145,1754801449860,-460.0,0.00024237,2]
[378257147,1754801449870,-460.0,0.00024237,2]
[378257149,1754801449880,-485.86,0.00024239,2]
[378257151,1754801449889,-1451.41,0.00024239,2]
[378257153,1754801449898,-460.0,0.00024239,2]
[378257155,1754801449907,-460.0,0.00024239,2]
[378257157,1754801449916,-152.168252,0.00024246,2]
[378257159,1754801449926,-1214.82008152,0.00024268,2]
[378257161,1754801449935,-460.0,0.00024288,2]
[378257163,1754801449945,-460.0,0.00024288,2]
[378257165,1754801449955,-2500.0,0.00024332,2]
[378257167,1754801449964,-2000.0,0.00024348,2]
[378257169,1754801449974,-2500.0,0.00024349,2]
[378257171,1754801449987,-151.0,0.00024373,7]
[378257173,1754801449996,-218.776702,0.00024373,7]
[378257175,1754801450006,-600.22,0.00024378,7]
[378257177,1754801450015,-668.63,0.00024385,2]
[378257179,1754801450024,-151.0,0.00024396,7]
[378257181,1754801450035,-151.0,0.000244,9]
[378257183,1754801450044,-151.0,0.000244,7]
[378257185,1754801450054,-151.0,0.000244,7]
[378257187,1754801450065,-156.0,0.000245,2]
[378257189,1754801450074,-151.0,0.000245,9]
[378257191,1754801450084,-659.4625897,0.000245,2]
[378257193,1754801450093,-460.0,0.0002451,2]
[378257195,1754801450102,-460.0,0.00024511,2]
[378257197,1754801450111,-607.53,0.00024511,2]
[378257199,1754801450120,-624.93,0.00024511,2]
[378257201,1754801450130,-822.26,0.00024511,2]
[378257203,1754801450140,-460.0,0.00024511,2]
[378257205,1754801450149,-1351.58,0.00024511,2]
[378257207,1754801450159,-460.0,0.00024511,2]
[378257209,1754801450168,-761.44,0.00024511,2]
[378257211,1754801450177,-460.0,0.00024511,2]
[378257213,1754801450187,-460.0,0.00024511,2]
[378257215,1754801450196,-485.86,0.00024513,2]
[378257217,1754801450206,-1451.41,0.00024513,2]
[378257219,1754801450215,-460.0,0.00024513,2]
[378257221,1754801450224,-460.0,0.00024513,2]
[378257223,1754801450233,-315.74386611,0.00024521,2]
[378257225,1754801450242,-610.43591832,0.00024521,2]
[378257227,1754801450252,-250.0,0.00024521,2]
[378257229,1754801450261,-1000.0,0.00024521,2]
[378257231,1754801450270,-219.91700054,0.00024521,2]
[378257233,1754801450279,-1000.0,0.00024521,2]
[378257235,1754801450288,-372.91866161,0.00024521,2]
[378257237,1754801450297,-828.47117971,0.00024521,2]
[378257239,1754801450306,-1000.0,0.00024521,2]
[378257241,1754801450316,-1000.0,0.00024521,2]
[378257243,1754801450332,-393.61947796,0.00024521,2]
[378257245,1754801450341,-1000.0,0.00024521,2]
[378257247,1754801450350,-1000.0,0.00024521,2]
[378257249,1754801450359,-1000.0,0.00024521,2]
[378257251,1754801450368,-551.42356798,0.00024521,2]
[378257253,1754801450379,-1000.0,0.00024521,2]
[378257255,1754801450388,-1000.0,0.00024521,2]
[378257257,1754801450397,-1003.8011336,0.00024521,2]
[378257259,1754801450406,-1000.0,0.00024521,2]
[378257261,1754801450416,-177.31153823,0.00024521,2]
[378257263,1754801450425,-1001.9550883,0.00024521,2]
[378257265,1754801450435,-1000.0,0.00024521,2]
[378257267,1754801450444,-1000.0,0.00024521,2]
[378257269,1754801450453,-1000.0,0.00024521,2]
[378257271,1754801450462,-1000.0,0.00024521,2]
[378257273,1754801450472,-1000.0,0.00024521,2]
[378257287,1754801450593,-1000.0,0.00024521,2]
[378257289,1754801450603,-1000.0,0.00024521,2]
[378257291,1754801450612,-164.02402428,0.00024521,2]
[378257293,1754801450621,-545.03100898,0.00024521,2]
[378257295,1754801450630,-1000.0,0.00024521,2]
[378257297,1754801450639,-1000.0,0.00024521,2]
[378257299,1754801450649,-252.454972,0.00024521,7]
[378257301,1754801450659,-151.0,0.00024521,7]
[378257303,1754801450668,-333.694264,0.00024521,7]
[378257305,1754801450678,-333.694264,0.00024521,7]
[378257307,1754801450687,-151.0,0.00024521,7]
[378257309,1754801450696,-230.162785,0.00024521,7]
[378257311,1754801450706,-230.162785,0.00024521,7]
[378257313,1754801450715,-151.0,0.00024521,7]
[378257315,1754801450724,-151.0,0.00024521,7]
[378257317,1754801450733,-3000.0,0.00024526,2]
[378257319,1754801450743,-172.0655254,0.0002455,2]
[378257321,1754801450752,-769.70275982,0.0002455,2]
[378257323,1754801450761,-460.0,0.00024562,2]
[378257325,1754801450771,-460.0,0.00024562,2]
[378257327,1754801450780,-527.86640923,0.000246,7]
[378257329,1754801450789,-312.16666667,0.000246,7]
[378257330,1754801450798,-151.0,0.00024635,7]
[378257331,1754801450807,-308.663711,0.00024635,7]
[378257332,1754801450816,-308.663711,0.00024635,7]
[378257333,1754801450826,-151.0,0.00024635,7]
[378257334,1754801450836,-567.391488,0.00024635,7]
[378257335,1754801450845,-567.391488,0.00024635,7]
[378257336,1754801450855,-824.785989,0.00024635,7]
[378257337,1754801450864,-824.785989,0.00024635,7]
[378257338,1754801450874,-1707.0,0.00024637,2]
[378257339,1754801450884,-151.0,0.0002465,7]
[378257340,1754801450894,-151.0,0.0002465,7]
[378257341,1754801450904,-151.0,0.0002465,7]
[378257342,1754801450913,-151.0,0.0002465,7]
[378257343,1754801450923,-353557.82987612,0.0002465,2]
[378257344,1754801450932,-503.90254019,0.0002465,2]
[378257345,1754801450942,-151.0,0.0002465,7]
[378257346,1754801450951,-333.694264,0.0002465,7]
[378257347,1754801450960,-333.694264,0.0002465,7]
[378257348,1754801450970,-151.0,0.0002465,7]
[378257349,1754801450983,-230.162785,0.0002465,7]
[378257350,1754801450992,-230.162785,0.0002465,7]
[378257351,1754801451002,-151.0,0.0002465,7]
[378257352,1754801451011,-151.0,0.0002465,7]
[378257353,1754801451021,-207.51,0.00024657,2]
[378257355,1754801451030,-1000.0,0.00024658,2]
[378257357,1754801451039,-1000.0,0.00024658,2]
[378257359,1754801451048,-374.20615113,0.00024658,2]
[378257361,1754801451060,-380.0,0.00024658,2]
[378257363,1754801451070,-151.0,0.00024658,7]
[378257365,1754801451080,-151.0,0.00024658,7]
[378257367,1754801451089,-151.0,0.00024658,7]
[378257369,1754801451098,-151.0,0.00024658,7]
[378257371,1754801451108,-151.0,0.00024658,7]
[378257373,1754801451116,-151.0,0.00024658,7]
[378257375,1754801451127,-151.0,0.00024658,7]
[378257377,1754801451137,-151.0,0.00024658,7]
[378257379,1754801451146,-151.0,0.00024658,7]
[378257381,1754801451156,-151.0,0.00024658,7]
[378257383,1754801451165,-151.0,0.00024658,7]
[378257385,1754801451174,-151.0,0.00024658,7]
[378257387,1754801451183,-151.0,0.00024658,7]
[378257389,1754801451193,-151.0,0.00024658,7]
[378257391,1754801451202,-153.196663,0.00024658,7]
[378257393,1754801451212,-151.0,0.00024658,7]
[378257395,1754801451222,-500.0,0.00024658,2]
[378257397,1754801451231,-500.0,0.00024658,2]
[378257399,1754801451240,-500.0,0.00024658,2]
[378257401,1754801451250,-500.0,0.00024658,2]
[378257403,1754801451259,-462.18559138,0.00024658,2]
[378257405,1754801451268,-436.0,0.00024658,2]
[378257407,1754801451278,-151.14718884,0.00024658,2]
[378257409,1754801451287,-500.0,0.00024673,2]
[378257411,1754801451296,-150.0,0.00024673,2]
[378257413,1754801451305,-1707.0,0.00024673,2]
[378257415,1754801451314,-824.785989,0.00024673,7]
[378257417,1754801451323,-824.785989,0.00024673,7]
[378257419,1754801451332,-1707.0,0.00024675,2]
[378257421,1754801451342,-1707.0,0.00024686,2]
[378257423,1754801451351,-567.391488,0.000247,7]
[378257425,1754801451360,-567.391488,0.000247,7]
[378257427,1754801451370,-231.96268195,0.000247,7]
[378257429,1754801451380,-215.44987349,0.000247,7]
[378257431,1754801451389,-216.64838636,0.000247,7]
[378257433,1754801451399,-308.663711,0.00024705,7]
[378257435,1754801451408,-308.663711,0.00024705,7]
[378257437,1754801451417,-200.0,0.00024769,15]
[378257439,1754801451427,-200.0,0.00024769,15]
[378257441,1754801451436,-300.0,0.00024769,15]
[378257443,1754801451445,-1098.4795583,0.00024774,2]
[378257445,1754801451455,-560.0,0.00024782,2]
[378257447,1754801451465,-1707.0,0.00024782,2]
[378257449,1754801451475,-460.0,0.00024784,2]
[378257451,1754801451484,-460.0,0.00024785,2]
[378257453,1754801451493,-607.53,0.00024785,2]
[378257455,1754801451502,-624.93,0.00024785,2]
[378257457,1754801451511,-822.26,0.00024785,2]
[378257459,1754801451521,-460.0,0.00024785,2]
[378257461,1754801451530,-1351.58,0.00024785,2]
[378257463,1754801451539,-460.0,0.00024785,2]
[378257465,1754801451549,-761.44,0.00024785,2]
[378257467,1754801451558,-460.0,0.00024785,2]
[378257469,1754801451567,-467.6532771,0.00024785,2]
[378257471,1754801451577,-485.86,0.00024787,2]
[378257473,1754801451586,-1451.41,0.00024787,2]
[378257475,1754801451595,-284.86,0.00024787,2]
[378257477,1754801451604,-460.0,0.00024787,2]
[378257479,1754801451613,-151.0,0.000248,7]
[378257481,1754801451623,-151.0,0.000248,7]
[378257483,1754801451633,-231.7801,0.000248,7]
[378257485,1754801451643,-151.0,0.000248,7]
[378257487,1754801451652,-8024.00771853,0.000248,7]
[378257489,1754801451662,-308.663711,0.000248,7]
[378257491,1754801451672,-308.663711,0.000248,7]
[378257493,1754801451681,-151.0,0.000248,7]
[378257495,1754801451691,-333.694264,0.000248,7]
[378257497,1754801451700,-333.694264,0.000248,7]
[378257499,1754801451710,-151.0,0.000248,7]
[378257501,1754801451726,-230.162785,0.000248,7]
[378257502,1754801451737,-151.0,0.000248,7]
[378257504,1754801451747,-230.162785,0.000248,7]
[378257506,1754801451756,-11743.77823211,0.000248,2]
[378257508,1754801451765,-210.882945,0.000248,7]
[378257510,1754801451775,-62511.53979,0.000248,2]
[378257512,1754801451783,-151.0,0.000248,7]
[378257514,1754801451792,-451.0,0.00024809,3]
[378257516,1754801451802,-2060.97430568,0.00024832,2]
[378257518,1754801451811,-460.0,0.00024836,2]
[378257520,1754801451820,-460.0,0.00024836,2]
[378257522,1754801451829,-160.0,0.00024842,5]
[378257524,1754801451839,-567.391488,0.00024868,7]
[378257526,1754801451847,-567.391488,0.00024868,7]
[378257528,1754801451857,-150.0,0.00024873,2]
[378257530,1754801451866,-3000.0,0.0002488,2]
[378257532,1754801451875,-510.68367649,0.00024896,2]
[378257534,1754801451885,-151.0,0.000249,7]
[378257536,1754801451894,-151.0,0.000249,7]
[378257538,1754801451903,-308.663711,0.000249,7]
[378257540,1754801451912,-308.663711,0.000249,7]
[378257542,1754801451921,-567.391488,0.000249,7]
[378257544,1754801451931,-567.391488,0.000249,7]
[378257546,1754801451940,-824.785989,0.000249,7]
[378257548,1754801451949,-824.785989,0.000249,7]
[378257550,1754801451958,-824.785989,0.000249,7]
[378257552,1754801451967,-824.785989,0.000249,7]
[378257554,1754801451977,-151.0,0.000249,7]
[378257556,1754801451989,-333.694264,0.000249,7]
[378257558,1754801451999,-333.694264,0.000249,7]
[378257560,1754801452008,-151.0,0.000249,7]
[378257562,1754801452018,-230.162785,0.000249,7]
[378257564,1754801452027,-151.0,0.000249,7]
[378257566,1754801452036,-230.162794,0.000249,7]
[378257568,1754801452045,-821009.295528,0.000249,2]
[378257570,1754801452055,-151.0,0.000249,7]
[378257572,1754801452066,-436.0,0.00024932,2]
[378257574,1754801452075,-150.56519698,0.00024973,2]
[378257576,1754801452084,-150.0,0.00024973,2]
[378257578,1754801452093,-89803.3425931,0.0002499,7]
[378257580,1754801452103,-151.0,0.0002499,7]
[378257582,1754801452112,-151.0,0.0002499,7]
[378257584,1754801452121,-308.663711,0.0002499,7]
[378257585,1754801452130,-308.663711,0.0002499,7]
[378257587,1754801452140,-567.391488,0.0002499,7]
[378257590,1754801452149,-567.391488,0.0002499,7]
[378257592,1754801452158,-824.785989,0.0002499,7]
[378257593,1754801452167,-824.785989,0.0002499,7]
[378257595,1754801452176,-151.0,0.0002499,7]
[378257598,1754801452186,-1066.31941888,0.00025,2]
[378257600,1754801452195,-16040.9131197,0.00025,2]
[378257601,1754801452205,-2625.84835311,0.00025,2]
[378257604,1754801452214,-39188.63683375,0.00025,2]
[378257605,1754801452224,-208.20303576,0.00025,2]
[378257607,1754801452234,-10364.0,0.00025,2]
[378257609,1754801452243,-359.42410369,0.00025,2]
[378257612,1754801452253,-98837.79111431,0.00025,2]
[378257614,1754801452262,-200.0,0.00025,7]
[378257616,1754801452272,-5132.999516,0.00025,10]
[378257617,1754801452281,-600.0,0.00025,2]
[378257619,1754801452290,-2043.46223623,0.00025,14]
[378257621,1754801452299,-151.0,0.00025,7]
[378257623,1754801452309,-151.0,0.00025,7]
[378257625,1754801452319,-151.0,0.00025,7]
[378257628,1754801452329,-151.0,0.00025,7]
[378257629,1754801452338,-308.663711,0.00025,7]
[378257632,1754801452348,-308.663711,0.00025,7]
[378257634,1754801452357,-308.663711,0.00025,7]
[378257635,1754801452367,-308.663711,0.00025,7]
[378257638,1754801452377,-150.99999964,0.00025,5]
[378257640,1754801452387,-567.391488,0.00025,7]
[378257641,1754801452396,-567.391489,0.00025,7]
[378257644,1754801452407,-824.785989,0.00025,7]
[378257646,1754801452417,-824.785987,0.00025,7]
[378257647,1754801452426,-231.96268195,0.00025,7]
[378257649,1754801452437,-216.64838636,0.00025,7]
[378257652,1754801452446,-312.16666667,0.00025,7]
[378257653,1754801452455,-461.62346162,0.00025,7]
[378257655,1754801452466,-843.0869304,0.00025,7]
[378257657,1754801452476,-152.168252,0.00025025,7]
[378257659,1754801452485,-788.01092336,0.00025041,2]
[378257661,1754801452495,-460.0,0.00025058,2]
[378257663,1754801452504,-460.0,0.00025059,2]
[378257665,1754801452513,-607.53,0.00025059,2]
[378257667,1754801452522,-624.93,0.00025059,2]
[378257669,1754801452531,-822.26,0.00025059,2]
[378257671,1754801452541,-460.0,0.00025059,2]
[378257673,1754801452550,-1351.58,0.00025059,2]
[378257675,1754801452560,-460.0,0.00025059,2]
[378257677,1754801452569,-761.44,0.00025059,2]
[378257679,1754801452578,-460.0,0.00025059,2]
[378257681,1754801452588,-485.86,0.00025061,2]
[378257683,1754801452596,-1451.41,0.00025061,2]
[378257685,1754801452605,-460.0,0.00025061,2]
[378257687,1754801452615,-150.0,0.00025068,2]
[378257689,1754801452624,-350.0,0.00025068,2]
[378257691,1754801452634,-1500.0,0.00025068,2]
[378257693,1754801452643,-233.62368627,0.00025068,2]
[378257695,1754801452652,-1500.0,0.00025068,2]
[378257697,1754801452662,-810.69752276,0.00025068,2]
[378257699,1754801452671,-1500.0,0.00025068,2]
[378257701,1754801452681,-1500.0,0.00025068,2]
[378257703,1754801452690,-500.35036201,0.00025068,2]
[378257705,1754801452698,-1500.0,0.00025068,2]
[378257707,1754801452708,-502.51417077,0.00025068,2]
[378257709,1754801452717,-1112.87288659,0.00025068,2]
[378257711,1754801452727,-1500.0,0.00025068,2]
[378257713,1754801452736,-1500.0,0.00025068,2]
[378257715,1754801452747,-1500.0,0.00025068,2]
[378257717,1754801452756,-1500.0,0.00025068,2]
[378257719,1754801452765,-1500.0,0.00025068,2]
[378257721,1754801452775,-698.51888683,0.00025068,2]
[378257723,1754801452784,-1500.0,0.00025068,2]
[378257725,1754801452793,-1500.0,0.00025068,2]
[378257727,1754801452803,-1500.0,0.00025068,2]
[378257729,1754801452812,-250.0,0.00025069,2]
[378257731,1754801452822,-460.0,0.0002511,2]
[378257733,1754801452831,-460.0,0.0002511,2]
[378257735,1754801452841,-200.0,0.0002513,12]
[378257737,1754801452850,-4848.45155061,0.00025164,2]
[378257739,1754801452859,-152.168252,0.000252,7]
[378257741,1754801452868,-436.0,0.00025206,2]
[378257742,1754801452878,-250.0,0.00025221,2]
[378257744,1754801452887,-179.91004498,0.00025301,2]
[378257746,1754801452896,-151.0,0.00025316,7]
[378257748,1754801452906,-660.0,0.0002533,2]
[378257750,1754801452915,-460.0,0.00025332,2]
[378257752,1754801452924,-460.0,0.00025333,2]
[378257754,1754801452934,-607.53,0.00025333,2]
[378257756,1754801452943,-624.93,0.00025333,2]
[378257758,1754801452952,-822.26,0.00025333,2]
[378257760,1754801452961,-460.0,0.00025333,2]
[378257762,1754801452970,-1351.58,0.00025333,2]
[378257764,1754801452981,-460.0,0.00025333,2]
[378257766,1754801452992,-761.44,0.00025333,2]
[378257768,1754801453001,-460.0,0.00025333,2]
[378257770,1754801453010,-485.86,0.00025335,2]
[378257772,1754801453019,-1451.41,0.00025335,2]
[378257774,1754801453030,-460.0,0.00025335,2]
[378257776,1754801453039,-460.0,0.00025384,2]
[378257778,1754801453048,-460.0,0.00025384,2]
[378257780,1754801453058,-451.0,0.00025385,4]
[378257782,1754801453069,-587.0,0.00025408,2]
[378257784,1754801453079,-300.0,0.00025421,2]
[378257786,1754801453088,-3500.0,0.00025428,2]
[378257788,1754801453098,-900.0,0.00025469,3]
[378257790,1754801453107,-16324.37472944,0.0002547,2]
[378257792,1754801453116,-160.0,0.00025479,6]
[378257794,1754801453126,-436.0,0.0002548,2]
[378257796,1754801453136,-1000.0,0.000255,2]
[378257798,1754801453146,-500.0,0.00025503,2]
[378257800,1754801453155,-250.0,0.00025521,2]
[378257802,1754801453165,-668.63,0.00025578,7]
[378257804,1754801453174,-460.0,0.00025606,2]
[378257806,1754801453184,-460.0,0.00025607,2]
[378257808,1754801453193,-607.53,0.00025607,2]
[378257810,1754801453203,-624.93,0.00025607,2]
[378257811,1754801453212,-822.26,0.00025607,2]
[378257813,1754801453221,-307.06068761,0.00025607,2]
[378257815,1754801453231,-1351.58,0.00025607,2]
[378257818,1754801453240,-460.0,0.00025607,2]
[378257820,1754801453250,-761.44,0.00025607,2]
[378257821,1754801453259,-460.0,0.00025607,2]
[378257823,1754801453268,-485.86,0.00025609,2]
[378257825,1754801453278,-1451.41,0.00025609,2]
[378257827,1754801453287,-460.0,0.00025609,2]
[378257829,1754801453296,-450.0,0.00025616,2]
[378257830,1754801453305,-2000.0,0.00025616,2]
[378257831,1754801453314,-747.95680819,0.00025616,2]
[378257832,1754801453324,-2000.0,0.00025616,2]
[378257833,1754801453334,-651.66209667,0.00025616,2]
[378257834,1754801453342,-2000.0,0.00025616,2]
[378257835,1754801453351,-265.4890127,0.00025616,2]
[378257836,1754801453361,-2000.0,0.00025616,2]
[378257837,1754801453370,-2000.0,0.00025616,2]
[378257838,1754801453380,-732.90276445,0.00025616,2]
[378257840,1754801453389,-1744.16675486,0.00025616,2]
[378257842,1754801453398,-2000.0,0.00025616,2]
[378257844,1754801453407,-2000.0,0.00025616,2]
[378257846,1754801453416,-2000.0,0.00025616,2]
[378257848,1754801453425,-460.0,0.00025658,2]
[378257862,1754801453545,-460.0,0.00025658,2]
[378257864,1754801453555,-151.0,0.00025693,7]
[378257866,1754801453564,-1214.82008152,0.00025703,2]
[378257868,1754801453574,-436.0,0.00025754,2]
[378257870,1754801453583,-1000.0,0.00025768,2]
[378257872,1754801453592,-150.26684607,0.00025768,2]
[378257875,1754801453601,-2150.0,0.00025788,2]
[378257877,1754801453611,-636.0,0.00025788,2]
[378257878,1754801453620,-971.0,0.00025788,2]
[378257880,1754801453630,-760.0,0.00025878,2]
[378257883,1754801453640,-460.0,0.0002588,2]
[378257884,1754801453649,-460.0,0.00025881,2]
[378257886,1754801453659,-607.53,0.00025881,2]
[378257888,1754801453668,-624.93,0.00025881,2]
[378257890,1754801453678,-822.26,0.00025881,2]
[378257893,1754801453687,-1351.58,0.00025881,2]
[378257895,1754801453696,-460.0,0.00025881,2]
[378257896,1754801453705,-761.44,0.00025881,2]
[378257899,1754801453715,-460.0,0.00025881,2]
[378257900,1754801453724,-485.86,0.00025883,2]
[378257903,1754801453733,-1451.41,0.00025883,2]
[378257905,1754801453743,-460.0,0.00025883,2]
[378257907,1754801453752,-460.0,0.00025932,2]
[378257909,1754801453761,-460.0,0.00025932,2]
[378257910,1754801453770,-451.0,0.00025962,4]
[378257912,1754801453779,-450.0,0.00025968,2]
[378257915,1754801453789,-2516.34251529,0.00025976,2]
[378257917,1754801453799,-38774.11870216,0.00026,10]
[378257919,1754801453808,-520.2773263,0.00026,2]
[378257921,1754801453818,-19900.0,0.00026,2]
[378257923,1754801453827,-161.0,0.00026,5]
[378257925,1754801453838,-33892.06783624,0.00026,7]
[378257927,1754801453847,-151.0,0.00026,7]
[378257929,1754801453856,-151.0,0.00026,7]
[378257931,1754801453865,-231.96268195,0.00026,10]
[378257933,1754801453874,-215.44987349,0.00026,10]
[378257935,1754801453885,-216.64838636,0.00026,10]
[378257937,1754801453894,-527.86640923,0.00026,10]
[378257938,1754801453904,-312.16666667,0.00026,10]
[378257940,1754801453914,-461.62346162,0.00026,10]
[378257942,1754801453924,-843.0869304,0.00026,10]
[378257945,1754801453933,-436.0,0.00026028,2]
[378257947,1754801453942,-350.0,0.00026068,2]
[378257948,1754801453952,-160.0,0.00026116,7]
[378257950,1754801453961,-460.0,0.00026154,2]
[378257952,1754801453971,-460.0,0.00026155,2]
[378257954,1754801453983,-607.53,0.00026155,2]
[378257956,1754801453994,-624.93,0.00026155,2]
[378257958,1754801454003,-822.26,0.00026155,2]
[378257960,1754801454012,-1351.58,0.00026155,2]
[378257962,1754801454021,-460.0,0.00026155,2]
[378257964,1754801454031,-761.44,0.00026155,2]
[378257966,1754801454039,-460.0,0.00026155,2]
[378257968,1754801454049,-485.86,0.00026157,2]
[378257970,1754801454061,-1451.41,0.00026157,2]
[378257972,1754801454072,-460.0,0.00026157,2]
[378257975,1754801454082,-191.16789962,0.0002616,2]
[378257977,1754801454095,-151.74912342,0.00026164,2]
[378257979,1754801454106,-2504.57187711,0.00026164,2]
[378257981,1754801454116,-2500.0,0.00026164,2]
[378257983,1754801454125,-2500.0,0.00026164,2]
[378257985,1754801454136,-2500.0,0.00026164,2]
[378257987,1754801454146,-1004.27592296,0.00026164,2]
[378257989,1754801454156,-1094.7523781,0.00026164,2]
[378257991,1754801454165,-1008.86272539,0.00026164,2]
[378257993,1754801454174,-2500.0,0.00026164,2]
[378257995,1754801454184,-150.0,0.000262,2]
[378257997,1754801454194,-269.43,0.00026206,2]
[378257999,1754801454203,-460.0,0.00026206,2]
[378258001,1754801454212,-152.168252,0.00026241,4]
[378258003,1754801454221,-3300.862,0.00026242,2]
[378258005,1754801454231,-436.0,0.00026302,2]
[378258006,1754801454240,-150.0,0.00026384,2]
[378258009,1754801454250,-860.0,0.00026426,2]
[378258010,1754801454259,-460.0,0.00026428,2]
[378258012,1754801454269,-460.0,0.00026429,2]
[378258014,1754801454278,-607.53,0.00026429,2]
[378258016,1754801454288,-624.93,0.00026429,2]
[378258018,1754801454298,-822.26,0.00026429,2]
[378258020,1754801454309,-1351.58,0.00026429,2]
[378258022,1754801454318,-460.0,0.00026429,2]
[378258024,1754801454327,-761.44,0.00026429,2]
[378258026,1754801454336,-460.0,0.00026429,2]
[378258028,1754801454345,-485.86,0.00026431,2]
[378258030,1754801454355,-1451.41,0.00026431,2]
[378258032,1754801454364,-460.0,0.00026431,2]
[378258034,1754801454373,-150.0,0.00026464,2]
[378258036,1754801454383,-150.0,0.00026464,2]
[378258038,1754801454392,-150.0,0.00026464,2]
[378258040,1754801454401,-460.0,0.0002648,2]
[378258042,1754801454410,-600.0,0.00026516,2]
[378258044,1754801454420,-451.0,0.00026539,4]
[378258046,1754801454428,-436.0,0.00026576,2]
[378258048,1754801454437,-450.0,0.00026616,2]
[378258050,1754801454447,-5000.0,0.00026664,2]
[378258052,1754801454456,-369.625558,0.00026676,2]
[378258054,1754801454466,-460.0,0.00026702,2]
[378258056,1754801454476,-460.0,0.00026703,2]